bitfinex/quotes_SOLUSD_20250416
["timestamp","ask_amount","ask_price","bid_price","bid_amount"]
[1744809594817,19.81468069,124.94,124.9,0.050485]
[1744809595121,19.81468069,124.94,124.9,28.07290293]
[1744809596917,19.81468069,124.93,124.9,8.05689012]
[1744809597918,19.81468069,124.93,124.9,0.050485]
[1744809598220,19.81468069,124.94,124.9,0.050485]
[1744809598524,19.81468069,124.93,124.9,0.050485]
[1744809598926,19.81468069,124.92,124.9,0.050485]
[1744809600197,38.79181043,124.91,124.9,0.050485]
[1744809600397,18.64964886,124.91,124.9,0.050485]
[1744809600603,26.0,124.88,124.86,2.9485335]
[1744809600797,19.81468069,124.87,124.86,2.9485335]
[1744809600997,38.46432955,124.87,124.86,2.9485335]
[1744809602316,38.46432955,124.87,124.79,19.81468069]
[1744809602317,18.64964886,124.86,124.79,19.81468069]
[1744809602518,19.81468069,124.85,124.8,19.81468069]
[1744809602909,19.81468069,124.86,124.81,19.81468069]
[1744809603104,19.81468069,124.85,124.81,19.81468069]
[1744809603312,19.81468069,124.84,124.8,19.81468069]
[1744809603507,18.64964886,124.87,124.8,19.81468069]
[1744809603842,19.81468069,124.85,124.8,19.81468069]
[1744809604037,19.81468069,124.84,124.8,19.81468069]
[1744809604343,19.81468069,124.85,124.81,27.8268592]
[1744809605115,26.0,124.88,124.82,19.81468069]
[1744809605323,19.81468069,124.86,124.81,27.8268592]
[1744809605624,19.81468069,124.86,124.82,19.81468069]
[1744809606141,19.81468069,124.88,124.83,8.01089481]
[1744809606323,296.62101043,124.91,124.84,6.4012]
[1744809606324,249.76,124.91,124.84,6.4012]
[1744809606642,19.81468069,124.9,124.86,19.81468069]
[1744809607235,19.81468069,124.9,124.85,19.81468069]
[1744809607620,19.81468069,124.89,124.85,19.81468069]
[1744809608243,19.81468069,124.88,124.83,29.57783185]
[1744809608444,19.81468069,124.88,124.83,49.39251254]
[1744809608747,19.81468069,124.88,124.83,29.57783185]
[1744809608950,19.81468069,124.88,124.84,19.81468069]
[1744809609255,249.76,124.91,124.84,19.81468069]
[1744809609452,19.81468069,124.89,124.84,19.81468069]
[1744809610450,19.81468069,124.89,124.85,27.82429222]
[1744809610846,19.81468069,124.89,124.85,8.00961153]
[1744809611043,19.81468069,124.9,124.85,47.84832105]
[1744809611220,269.57468069,124.91,124.86,19.81468069]
[1744809612225,249.76,124.91,124.88,8.00768737]
[1744809612426,1.5043,124.97,124.89,19.81468069]
[1744809612633,19.81468069,124.95,124.9,19.81468069]
[1744809612846,19.81468069,124.94,124.89,19.81468069]
[1744809614045,19.81468069,124.93,124.88,47.8415865]
[1744809614253,19.81468069,124.92,124.88,28.02690581]
[1744809614440,19.81468069,124.93,124.88,47.8415865]
[1744809614749,34.00287434,124.96,124.89,19.81468069]
[1744809614957,19.81468069,124.96,124.91,19.81468069]
[1744809615145,31.70768222,124.95,124.9,31.70768222]
[1744809616354,31.70768222,124.95,124.91,8.00576415]
[1744809616746,31.70768222,124.95,124.91,28.02017452]
[1744809617053,31.70768222,124.97,124.92,31.70768222]
[1744809617362,31.70768222,124.96,124.91,59.72785674]
[1744809617852,31.70768222,124.95,124.91,8.00576415]
[1744809618159,31.70768222,124.96,124.91,39.71344637]
[1744809618659,31.70768222,124.97,124.92,31.70768222]
[1744809619157,31.70768222,124.96,124.92,31.70768222]
[1744809619332,31.70768222,124.96,124.91,59.72785674]
[1744809619755,31.70768222,124.97,124.92,31.70768222]
[1744809620260,31.70768222,124.96,124.91,59.72785674]
[1744809621961,31.70768222,124.97,124.92,31.70768222]
[1744809622257,31.70768222,124.95,124.91,8.00576415]
[1744809623559,31.70768222,124.94,124.91,8.00576415]
[1744809624543,31.70768222,124.93,124.91,8.00576415]
[1744809624741,31.70768222,124.94,124.91,8.00576415]
[1744809625847,8.00269749,124.96,124.91,8.00576415]
[1744809625848,26.0,124.99,124.91,59.72785674]
[1744809626049,31.70768222,124.96,124.91,59.72785674]
[1744809626242,31.70768222,124.95,124.91,59.72785674]
[1744809628165,31.70768222,124.95,124.91,39.71344637]
[1744809628563,31.70768222,124.97,124.92,31.70768222]
[1744809628744,31.70768222,124.98,124.93,31.70768222]
[1744809629882,31.70768222,124.97,124.93,31.70768222]
[1744809630085,34.00114407,124.99,124.94,39.71152406]
[1744809630086,31.70768222,124.99,124.94,39.71152406]
[1744809630248,31.70768222,124.97,124.94,8.00384184]
[1744809630448,31.70768222,124.98,124.94,8.00384184]
[1744809632095,31.70768222,124.98,124.93,28.01480159]
[1744809632291,31.70768222,124.97,124.93,28.01480159]
[1744809632495,31.70768222,124.99,124.94,31.70768222]
[1744809632675,31.70768222,124.98,124.93,59.72248381]
[1744809632871,31.70768222,124.97,124.93,28.01480159]
[1744809633681,31.70768222,124.95,124.93,8.00448251]
[1744809634280,31.70768222,124.94,124.89,27.87712343]
[1744809634601,31.70768222,124.94,124.89,85.58480565]
[1744809634778,31.70768222,124.94,124.9,28.02241793]
[1744809635290,19.82059564,124.94,124.9,28.02241793]
[1744809635793,19.82059564,124.94,124.9,47.84301357]
[1744809636097,19.82059564,124.95,124.9,47.84301357]
[1744809638388,19.82059564,124.97,124.92,19.82059564]
[1744809638910,19.82059564,124.97,124.93,8.00448251]
[1744809639081,19.82059564,124.96,124.93,8.00448251]
[1744809639705,19.82059564,124.96,124.93,28.01568878]
[1744809640306,19.82059564,124.98,124.93,47.83628442]
[1744809640479,19.82059564,124.99,124.94,19.82059564]
[1744809640972,19.82059564,124.99,124.93,28.01568878]
[1744809640973,19.82059564,124.99,124.93,47.83628442]
[1744809641192,19.82059564,124.98,124.93,47.83628442]
[1744809641404,19.82059564,124.99,124.94,19.82059564]
[1744809642697,19.82059564,125.0,124.95,19.82059564]
[1744809643007,19.82059564,125.01,124.96,21.41099564]
[1744809643212,19.82059564,125.01,124.97,8.00192046]
[1744809643412,249.74,125.02,124.99,19.82059564]
[1744809644789,249.74,125.02,125.0,8.0]
[1744809644790,269.56059564,125.02,125.0,8.0]
[1744809645308,269.56059564,125.02,124.97,19.82059564]
[1744809645612,19.82059564,125.0,124.98,8.0012802]
[1744809645792,249.74,125.02,124.98,8.0012802]
[1744809646104,19.82059564,125.01,124.98,8.0012802]
[1744809646315,19.82059564,124.99,124.97,8.0015906]
[1744809646513,19.82059564,125.0,124.97,8.0015906]
[1744809647306,19.82059564,124.99,124.97,8.0015906]
[1744809648709,19.82059564,124.98,124.96,8.00256081]
[1744809649014,19.82059564,124.98,124.94,8.00384184]
[1744809649225,8.000978,124.99,124.94,8.00384184]
[1744809649387,19.82059564,124.96,124.94,8.00384184]
[1744809649588,19.82059564,124.97,124.94,8.00384184]
[1744809649806,19.82059564,124.96,124.94,8.00384184]
[1744809650912,19.82059564,124.96,124.93,8.00448251]
[1744809657420,19.82059564,124.96,124.92,28.01689256]
[1744809657807,19.82059564,124.95,124.92,28.01689256]
[1744809658115,19.82059564,124.96,124.92,28.01689256]
[1744809658497,19.82059564,124.95,124.92,28.01689256]
[1744809659203,19.82059564,124.95,124.88,8.00768737]
[1744809659204,19.82059564,124.93,124.88,8.00768737]
[1744809659417,19.82059564,124.89,124.87,20.02025945]
[1744809659601,19.82059564,124.89,124.86,8.00897004]
[1744809659916,19.82059564,124.88,124.86,8.00897004]
[1744809660505,19.82059564,124.89,124.86,8.00897004]
[1744809660724,19.82059564,124.9,124.86,8.00897004]
[1744809661623,19.82059564,124.89,124.86,8.00897004]
[1744809662818,19.82059564,124.89,124.85,47.85275402]
[1744809663426,19.82059564,124.89,124.85,28.03215838]
[1744809663719,19.82059564,124.88,124.85,8.00961153]
[1744809664320,19.82059564,124.87,124.85,8.00961153]
[1744809664828,19.82059564,124.88,124.84,8.01025312]
[1744809665202,19.82059564,124.88,124.84,28.03588592]
[1744809666301,19.82059564,124.87,124.84,28.03588592]
[1744809666830,19.82059564,124.86,124.83,8.01089481]
[1744809668006,19.82059564,124.86,124.82,28.04037814]
[1744809668207,8.0073835,124.89,124.82,28.04037814]
[1744809668410,19.82059564,124.86,124.82,28.04037814]
[1744809670332,26.15269564,124.83,124.76,8.01538954]
[1744809670535,19.82059564,124.83,124.78,19.82059564]
[1744809670708,19.82059564,124.82,124.77,19.82059564]
[1744809670904,27.6082,124.85,124.78,38.4702445]
[1744809671223,19.82059564,124.83,124.78,45.82059564]
[1744809671402,19.82059564,124.82,124.78,19.82059564]
[1744809671605,19.82059564,124.82,124.77,19.82059564]
[1744809672315,19.82059564,124.82,124.78,8.01410482]
[1744809672798,19.82059564,124.81,124.78,8.01410482]
[1744809673530,20.0,124.86,124.8,26.0]
[1744809673706,20.0,124.86,124.79,20.16264886]
[1744809673707,8.0268,124.94,124.85,45.82059564]
[1744809673905,19.82059564,124.93,124.87,19.82059564]
[1744809674128,19.82059564,124.92,124.87,19.82059564]
[1744809674428,19.82059564,124.89,124.84,19.82059564]
[1744809674632,19.82059564,124.88,124.83,19.82059564]
[1744809674814,19.82059564,124.86,124.82,26.0]
[1744809675209,19.82059564,124.87,124.82,45.82059564]
[1744809675718,19.82059564,124.88,124.83,19.82059564]
[1744809676738,19.82059564,124.87,124.84,8.01025312]
[1744809678139,19.82059564,124.88,124.84,8.01025312]
[1744809679420,19.82059564,124.88,124.84,27.83084876]
[1744809679616,26.0,124.89,124.85,19.82059564]
[1744809679827,249.86,124.92,124.84,28.03588592]
[1744809679828,295.68059564,124.92,124.87,19.82059564]
[1744809680040,249.86,124.92,124.86,19.82059564]
[1744809680218,249.86,124.92,124.87,19.82059564]
[1744809680421,249.86,124.92,124.88,19.82059564]
[1744809680632,249.86,124.92,124.9,8.00640512]
[1744809680835,19.82059564,124.91,124.87,8.00832866]
[1744809681143,249.86,124.92,124.88,19.82059564]
[1744809681440,19.82059564,124.93,124.89,19.82059564]
[1744809681620,19.82059564,124.93,124.88,19.82059564]
[1744809682320,19.82059564,124.94,124.89,19.82059564]
[1744809682527,19.82059564,124.95,124.9,19.82059564]
[1744809682720,45.82059564,124.95,124.91,8.00576415]
[1744809683122,1.5145,124.97,124.91,47.84077016]
[1744809683317,1.5145,124.97,124.93,19.82059564]
[1744809683922,25.88969564,124.98,124.93,19.82059564]
[1744809684338,6.0691,124.98,124.94,19.82059564]
[1744809684521,45.82059564,124.99,124.91,34.42707452]
[1744809684834,19.82059564,124.97,124.93,8.00448251]
[1744809685140,31.69844884,124.97,124.93,8.00448251]
[1744809685941,31.69844884,124.98,124.93,59.71413762]
[1744809686447,31.69844884,124.97,124.93,59.71413762]
[1744809687147,31.69844884,124.97,124.93,28.01568878]
[1744809689443,31.69844884,124.96,124.93,8.00448251]
[1744809689641,31.69844884,124.94,124.9,8.00640512]
[1744809689944,31.69844884,124.93,124.9,8.00640512]
[1744809690718,31.69844884,124.94,124.9,28.02241793]
[1744809691241,31.69844884,124.94,124.9,59.72086677]
[1744809691762,31.69844884,124.94,124.9,28.02241793]
[1744809692551,31.69844884,124.94,124.9,59.72086677]
[1744809693853,31.69844884,124.94,124.89,31.69844884]
[1744809694949,31.69844884,124.94,124.9,31.69844884]
[1744809695248,31.69844884,124.93,124.88,59.72535465]
[1744809695445,31.69844884,124.92,124.88,59.72535465]
[1744809695763,31.69844884,124.92,124.88,28.02690581]
[1744809695930,31.69844884,124.91,124.88,28.02690581]
[1744809696356,31.69844884,124.92,124.88,28.02690581]
[1744809696555,31.69844884,124.92,124.88,59.72535465]
[1744809697545,31.69844884,124.92,124.88,28.02690581]
[1744809698238,1.6394,124.94,124.88,59.72535465]
[1744809698434,31.69844884,124.94,124.89,31.69844884]
[1744809699160,31.69844884,124.94,124.9,31.69844884]
[1744809700440,26.0,124.95,124.91,59.71862336]
[1744809701051,57.69844884,124.95,124.91,59.71862336]
[1744809701253,57.69844884,124.95,124.91,28.02017452]
[1744809701863,57.69844884,124.95,124.91,59.71862336]
[1744809702734,26.0,124.95,124.91,59.71862336]
[1744809702934,57.69844884,124.95,124.91,59.71862336]
[1744809703841,26.0,124.95,124.91,59.71862336]
[1744809705268,26.0,124.98,124.92,31.69844884]
[1744809705464,57.69844884,124.98,124.93,31.69844884]
[1744809705944,31.69844884,124.97,124.93,31.69844884]
[1744809706264,31.69844884,124.97,124.92,31.69844884]
[1744809706831,31.69844884,124.97,124.93,8.00448251]
[1744809707258,19.81123223,124.97,124.93,28.01568878]
[1744809709055,251.317,125.0,124.93,47.82692101]
[1744809709268,19.81123223,124.97,124.93,47.82692101]
[1744809710868,19.81123223,124.99,124.95,19.81123223]
[1744809711045,295.59123223,125.0,124.96,28.00896285]
[1744809711244,19.81123223,124.99,124.96,28.00896285]
[1744809711466,249.78,125.0,124.96,28.00896285]
[1744809711646,249.78,125.0,124.97,19.81123223]
[1744809711855,19.81123223,125.04,124.99,19.81123223]
[1744809712053,19.81123223,125.03,124.98,19.81123223]
[1744809712363,19.81123223,125.02,124.97,21.46823223]
[1744809712561,19.81123223,125.0,124.96,28.00896285]
[1744809713067,19.81123223,124.99,124.95,8.00320128]
[1744809713260,19.81123223,124.98,124.95,8.00320128]
[1744809713447,19.81123223,124.99,124.95,8.00320128]
[1744809714969,19.81123223,124.96,124.94,8.00384184]
[1744809715159,19.81123223,124.95,124.94,8.00384184]
[1744809715867,19.81123223,124.96,124.94,8.00384184]
[1744809716769,19.81123223,124.96,124.93,8.00448251]
[1744809716968,19.81123223,124.95,124.93,8.00448251]
[1744809717171,19.81123223,124.94,124.91,8.00576415]
[1744809718072,19.81123223,124.95,124.91,8.00576415]
[1744809718255,19.81123223,124.94,124.91,8.00576415]
[1744809718567,34.00222939,124.97,124.91,8.00576415]
[1744809718742,19.81123223,124.95,124.91,8.00576415]
[1744809718943,19.81123223,124.94,124.91,8.00576415]
[1744809720454,19.81123223,124.93,124.88,20.01874631]
[1744809720654,8.00328618,124.95,124.88,20.01874631]
[1744809720655,19.81123223,124.91,124.88,20.01874631]
[1744809721056,19.81123223,124.91,124.88,28.02643368]
[1744809722276,19.81123223,124.92,124.88,28.02643368]
[1744809722474,19.81123223,124.9,124.87,8.00806548]
[1744809722776,54.24545545,124.94,124.87,8.00806548]
[1744809722777,19.81123223,124.89,124.87,8.00806548]
[1744809723155,19.81123223,124.9,124.86,27.82020227]
[1744809723476,26.0,124.91,124.87,19.81123223]
[1744809723477,45.81123223,124.91,124.87,19.81123223]
[1744809723658,19.81123223,124.9,124.86,8.00897004]
[1744809724381,32.3874,124.95,124.89,19.81123223]
[1744809724569,19.81123223,124.95,124.91,19.81123223]
[1744809724879,19.81123223,124.97,124.92,19.81123223]
[1744809725080,19.81123223,124.97,124.93,8.00448251]
[1744809725454,19.81123223,124.96,124.93,8.00448251]
[1744809726178,19.81123223,124.96,124.92,28.01793146]
[1744809728976,19.81123223,124.97,124.92,47.82916369]
[1744809729178,1.6142,125.0,124.95,19.81123223]
[1744809729384,21.42543223,125.0,124.95,19.81123223]
[1744809729587,19.81123223,124.99,124.94,19.81123223]
[1744809729790,19.81123223,124.98,124.94,19.81123223]
[1744809729965,19.81123223,124.99,124.95,19.81123223]
[1744809730652,19.81123223,124.99,124.96,8.00256081]
[1744809731966,19.81123223,124.99,124.95,8.00297195]
[1744809731967,19.81123223,124.98,124.95,8.00297195]
[1744809733975,19.81123223,124.97,124.95,8.00297195]
[1744809734761,19.81123223,124.98,124.95,8.00297195]
[1744809734974,19.81123223,124.98,124.94,8.00384184]
[1744809735979,283.69967396,125.01,124.95,19.81123223]
[1744809736185,19.81123223,125.0,124.95,19.81123223]
[1744809736363,19.81123223,124.99,124.95,19.81123223]
[1744809737889,8.26506157,125.03,124.97,19.81123223]
[1744809737890,1.5526,125.03,124.97,19.81123223]
[1744809738087,1.5526,125.03,124.98,19.81123223]
[1744809738383,19.81123223,125.02,124.97,19.81123223]
[1744809738573,19.81123223,125.01,124.96,47.82019508]
[1744809739084,19.81123223,125.01,124.97,19.81123223]
[1744809739765,19.81123223,124.98,124.96,8.00256081]
[1744809739961,19.81123223,124.98,124.94,47.82419597]
[1744809740985,19.81123223,124.98,124.94,28.01296374]
[1744809742571,19.81123223,124.97,124.94,28.01296374]
[1744809742875,19.81123223,124.98,124.94,28.01296374]
[1744809743690,19.81123223,124.97,124.94,8.00384184]
[1744809743873,19.81123223,124.96,124.94,8.00384184]
[1744809744184,19.81123223,124.97,124.92,47.82886492]
[1744809744372,19.81123223,124.96,124.92,28.01763269]
[1744809749088,19.81123223,124.99,124.94,19.81123223]
[1744809749590,19.81123223,124.98,124.93,19.81123223]
[1744809749784,19.81123223,124.98,124.94,8.00384184]
[1744809751183,15.03637223,124.98,124.94,8.00384184]
[1744809751366,19.81123223,124.96,124.94,8.00384184]
[1744809751974,19.81123223,124.96,124.92,28.01793146]
[1744809752878,19.81123223,124.95,124.92,8.00512327]
[1744809753682,19.81123223,124.94,124.92,8.00512327]
[1744809753894,19.81123223,124.93,124.89,8.0070462]
[1744809754203,19.81123223,124.9,124.89,8.0070462]
[1744809754377,19.81123223,124.9,124.87,8.00832866]
[1744809754699,19.81123223,124.91,124.87,28.02915031]
[1744809755007,19.81123223,124.9,124.87,8.00832866]
[1744809755576,19.81123223,124.91,124.87,8.00832866]
[1744809756001,19.81123223,124.91,124.87,28.02915031]
[1744809756386,19.81123223,124.91,124.87,47.84038254]
[1744809756793,8.00409444,124.94,124.87,47.84038254]
[1744809756794,19.81123223,124.92,124.87,47.84038254]
[1744809756972,19.81123223,124.92,124.88,19.81123223]
[1744809757172,20.26504886,124.95,124.9,19.81123223]
[1744809757173,21.42663223,124.95,124.9,19.81123223]
[1744809757390,19.81123223,124.94,124.9,19.81123223]
[1744809757795,19.81123223,124.94,124.89,19.81123223]
[1744809758499,19.81123223,124.94,124.9,8.00640512]
[1744809759198,19.81123223,124.95,124.9,47.83365016]
[1744809759397,19.81123223,124.95,124.91,19.81123223]
[1744809759601,19.81123223,124.95,124.9,47.83365016]
[1744809759785,26.65164631,124.97,124.9,47.83365016]
[1744809759985,19.81123223,124.96,124.9,28.02241793]
[1744809760187,19.81123223,124.96,124.91,19.81123223]
[1744809760382,19.81123223,124.96,124.92,27.8163555]
[1744809760693,19.81123223,124.97,124.92,27.8163555]
[1744809760899,9.51946005,125.01,124.94,19.81123223]
[1744809761076,19.81123223,124.99,124.94,19.81123223]
[1744809762302,1.5201,125.01,124.95,19.81123223]
[1744809762475,1.5201,125.01,124.96,8.00256081]
[1744809762476,19.81123223,125.0,124.96,8.00256081]
[1744809763606,19.81123223,124.99,124.96,8.00256081]
[1744809765806,19.81123223,124.99,124.95,8.00320128]
[1744809766607,19.81123223,124.98,124.95,8.00320128]
[1744809767289,19.81123223,124.97,124.95,8.00320128]
[1744809767694,19.81123223,124.97,124.93,8.00448251]
[1744809768803,19.81123223,124.96,124.93,8.00448251]
[1744809769307,19.81123223,124.97,124.93,8.00448251]
[1744809770386,19.81123223,124.96,124.93,8.00448251]
[1744809770585,34.0016097,124.98,124.93,8.00448251]
[1744809770800,19.81123223,124.96,124.93,8.00448251]
[1744809772309,19.81123223,124.95,124.92,8.00499735]
[1744809772512,19.81123223,124.95,124.91,8.00576415]
[1744809773005,19.81123223,124.94,124.91,8.00576415]
[1744809774915,19.81123223,124.94,124.9,8.00640512]
[1744809776017,19.81123223,124.95,124.9,27.81763735]
[1744809777812,19.81123223,124.96,124.91,19.81123223]
[1744809778920,19.81123223,124.96,124.92,8.00512327]
[1744809780820,19.81123223,124.95,124.92,8.00512327]
[1744809781126,19.81123223,124.95,124.91,8.00576415]
[1744809781330,19.81123223,124.95,124.9,39.82724504]
[1744809781331,19.81123223,124.94,124.9,8.00614388]
[1744809781625,19.81123223,124.93,124.9,8.00614388]
[1744809782221,19.81123223,124.94,124.9,8.00614388]
[1744809783505,19.81123223,124.95,124.9,27.81737611]
[1744809783719,8.00220945,124.97,124.91,19.81123223]
[1744809784022,19.81123223,124.96,124.91,19.81123223]
[1744809784627,19.81123223,124.96,124.92,8.00512327]
[1744809785728,26.0,124.98,124.92,27.8163555]
[1744809786028,249.74,125.0,124.92,27.8163555]
[1744809786029,249.74,125.0,124.95,19.81123223]
[1744809786193,19.81123223,125.01,124.97,19.81123223]
[1744809786397,7.99764492,125.04,124.97,19.81123223]
[1744809786605,19.81123223,125.02,124.98,19.81123223]
[1744809786830,45.81123223,125.02,124.98,19.81123223]
[1744809787212,18.64964886,125.03,124.98,19.81123223]
[1744809787414,19.81123223,125.02,124.98,19.81123223]
[1744809787614,19.81123223,125.02,124.99,8.00064005]
[1744809787810,7.99578112,125.07,125.01,19.81123223]
[1744809788018,340.9146,125.08,125.04,19.81123223]
[1744809788019,271.16433223,125.08,125.04,19.81123223]
[1744809788321,19.81123223,125.09,125.04,19.81123223]
[1744809788525,45.81123223,125.09,125.04,19.81123223]
[1744809789129,19.81123223,125.08,125.04,19.81123223]
[1744809789306,19.81123223,125.08,125.03,19.81123223]
[1744809789708,19.81123223,125.08,125.04,7.99744081]
[1744809790718,19.81123223,125.07,125.03,7.99779681]
[1744809791222,19.81123223,125.06,125.03,7.99779681]
[1744809791824,19.81123223,125.04,125.0,7.99945369]
[1744809792022,7.9955225,125.07,125.0,7.99945369]
[1744809792023,19.81123223,125.03,125.0,7.99945369]
[1744809792220,19.81123223,125.04,125.0,27.81068592]
[1744809792418,0.14216157,125.09,125.02,19.81123223]
[1744809792617,45.81123223,125.07,125.02,19.81123223]
[1744809792822,19.81123223,125.07,125.03,19.81123223]
[1744809793834,19.81123223,125.08,125.04,7.99744081]
[1744809794023,19.81123223,125.08,125.04,27.80867304]
[1744809794332,45.81123223,125.09,125.04,27.80867304]
[1744809794716,45.81123223,125.09,125.04,34.40387304]
[1744809795034,19.81123223,125.08,125.04,34.40387304]
[1744809795245,19.81123223,125.06,125.03,9.56155661]
[1744809795413,19.81123223,125.06,125.03,7.99805661]
[1744809795612,19.81123223,125.05,125.02,7.9987202]
[1744809796729,19.81123223,125.04,125.01,7.99917389]
[1744809796941,19.81123223,125.06,125.01,27.81040612]
[1744809797144,45.81123223,125.06,125.01,27.81040612]
[1744809797522,19.81123223,125.05,125.01,7.99917389]
[1744809797749,19.81123223,125.05,125.01,27.81040612]
[1744809798545,19.81123223,125.04,125.01,7.99917389]
[1744809799221,19.81123223,125.05,125.01,7.99917389]
[1744809802537,19.81123223,125.04,125.01,7.99917389]
[1744809803524,19.81123223,125.05,125.01,7.99917389]
[1744809803723,26.0,125.06,125.01,27.81040612]
[1744809803931,45.81123223,125.06,125.01,27.81040612]
[1744809804226,19.81123223,125.05,125.01,7.99917389]
[1744809805647,26.0,125.06,125.01,7.99917389]
[1744809805648,18.64964886,125.09,125.03,19.81123223]
[1744809805840,1.70026157,125.1,125.03,19.81123223]
[1744809805841,7.99389825,125.1,125.03,19.81123223]
[1744809806043,19.81123223,125.08,125.03,19.81123223]
[1744809806214,7.99389825,125.1,125.03,19.81123223]
[1744809806420,19.81123223,125.08,125.03,19.81123223]
[1744809806939,19.81123223,125.08,125.04,7.99744081]
[1744809807426,19.81123223,125.07,125.04,7.99744081]
[1744809807626,19.81123223,125.08,125.04,7.99744081]
[1744809808031,7.99190493,125.13,125.06,19.81123223]
[1744809808337,45.81123223,125.12,125.06,19.81123223]
[1744809808721,45.81123223,125.12,125.07,19.81123223]
[1744809809139,19.81123223,125.11,125.08,7.99488327]
[1744809809343,19.81123223,125.09,125.07,7.9955225]
[1744809810236,19.81123223,125.08,125.05,9.59815397]
[1744809810429,19.81123223,125.06,125.02,21.65829339]
[1744809811551,19.81123223,125.06,125.03,7.99808046]
[1744809811852,7.99471451,125.09,125.03,7.99808046]
[1744809812032,19.81123223,125.06,125.03,7.99808046]
[1744809813261,19.81123223,125.05,125.01,6.4848]
[1744809813463,19.81123223,125.03,125.02,7.9987202]
[1744809813761,19.81123223,125.04,125.02,7.9987202]
[1744809814954,19.81123223,125.04,125.01,7.99936005]
[1744809815540,7.99522211,125.08,125.01,47.8089924]
[1744809815742,19.81123223,125.06,125.02,19.81123223]
[1744809816557,19.81123223,125.06,125.03,7.99808046]
[1744809817644,19.81123223,125.05,125.02,7.9987202]
[1744809819957,19.81123223,125.06,125.02,7.9987202]
[1744809823156,19.81123223,125.03,125.02,7.9987202]
[1744809823538,19.81123223,125.03,125.0,8.0]
[1744809823759,19.81123223,125.02,125.0,8.0]
[1744809823957,19.81123223,125.01,125.0,8.0]
[1744809825158,19.81123223,125.02,124.99,8.00064005]
[1744809825362,1.6158,125.06,125.0,19.81123223]
[1744809825660,19.81123223,125.06,125.01,19.81123223]
[1744809825856,19.81123223,125.05,125.0,19.81123223]
[1744809826266,19.81123223,125.06,125.01,19.81123223]
[1744809827047,19.81123223,125.06,125.02,7.9987202]
[1744809828268,19.81123223,125.05,125.02,7.9987202]
[1744809828565,19.81123223,125.04,125.02,7.9987202]
[1744809829157,19.81123223,125.04,125.0,8.0]
[1744809829556,19.81123223,125.05,125.0,27.81123223]
[1744809830378,19.81123223,125.04,125.0,8.0]
[1744809830672,19.81123223,125.04,125.0,27.81123223]
[1744809830975,45.81123223,125.05,125.0,27.81123223]
[1744809831672,45.81123223,125.05,124.99,20.00160012]
[1744809831673,19.81123223,125.03,124.99,8.00064005]
[1744809831875,19.81123223,125.01,124.99,8.00064005]
[1744809832078,19.81123223,125.0,124.99,8.00064005]
[1744809832250,19.81123223,125.0,124.96,1.651]
[1744809832456,19.81123223,124.99,124.96,1.651]
[1744809833073,19.81123223,124.98,124.96,8.0023134]
[1744809833446,19.81123223,124.98,124.95,8.00296773]
[1744809833649,19.81123223,124.97,124.95,8.00296773]
[1744809833887,19.81123223,124.98,124.95,8.00296773]
[1744809834687,19.81123223,125.0,124.95,27.81419996]
[1744809834981,19.81123223,125.0,124.95,47.82220316]
[1744809835180,19.81123223,124.98,124.95,8.00296773]
[1744809835568,19.81123223,124.98,124.93,39.82189113]
[1744809835569,19.81123223,124.98,124.94,8.00384184]
[1744809836385,19.81123223,125.0,124.95,19.81123223]
[1744809837178,26.0,125.01,124.97,19.81123223]
[1744809837683,19.81123223,125.0,124.95,19.81123223]
[1744809837885,19.81123223,124.99,124.94,47.82467868]
[1744809838083,19.81123223,125.0,124.95,19.81123223]
[1744809839674,19.81123223,125.0,124.96,8.00256081]
[1744809840687,19.81123223,124.99,124.96,8.00256081]
[1744809841490,19.81123223,125.0,124.96,8.00256081]
[1744809842088,19.81123223,124.99,124.94,28.01344645]
[1744809842273,19.81123223,124.99,124.94,47.82467868]
[1744809842993,19.81123223,125.0,124.95,19.81123223]
[1744809844089,26.0,125.01,124.96,8.00256081]
[1744809844298,45.81123223,125.01,124.96,27.81379304]
[1744809844475,19.81123223,125.04,124.99,19.81123223]
[1744809844796,19.81123223,125.04,124.97,1.6595]
[1744809844797,19.81123223,125.03,124.98,19.81123223]
[1744809845588,26.0,125.04,125.0,19.81123223]
[1744809845792,19.81123223,125.05,125.01,19.81123223]
[1744809845965,19.81123223,125.04,124.97,34.1871]
[1744809846171,19.81123223,125.02,124.98,8.0012802]
[1744809846373,26.0,125.04,124.99,19.81123223]
[1744809846583,26.0,125.04,124.98,8.0012802]
[1744809846584,26.0,125.04,125.0,19.81123223]
[1744809846989,19.81123223,125.06,125.01,19.81123223]
[1744809847294,19.81123223,125.05,125.0,19.81123223]
[1744809847877,19.81123223,125.03,124.98,28.00448071]
[1744809848077,19.81123223,125.03,124.99,19.81123223]
[1744809848383,45.81123223,125.04,125.0,8.0]
[1744809849291,19.81123223,125.03,125.0,8.0]
[1744809850203,26.0,125.06,125.02,19.81123223]
[1744809850393,26.0,125.06,125.03,7.99808046]
[1744809850980,16.09626244,125.1,125.04,19.81123223]
[1744809851202,7.99297082,125.11,125.06,19.81123223]